bitfinex/quotes_BTCUSD_20250224
["timestamp","ask_amount","ask_price","bid_price","bid_amount"]
[1740429376466,0.0009787,94661.0,94660.0,0.1262]
[1740429376726,0.0030404,94661.0,94660.0,0.1262]
[1740429378029,0.1615004,94661.0,94660.0,0.1262]
[1740429379812,0.0030404,94661.0,94660.0,0.1262]
[1740429380035,0.0009787,94661.0,94660.0,0.1262]
[1740429380243,0.00288745,94661.0,94660.0,0.1262]
[1740429380846,0.0009787,94661.0,94660.0,0.1262]
[1740429381280,0.00280794,94661.0,94660.0,0.1262]
[1740429381435,0.0009787,94661.0,94660.0,0.1262]
[1740429381639,0.00280794,94661.0,94660.0,0.1262]
[1740429384911,0.00280794,94661.0,94660.0,0.1278992]
[1740429386303,0.0009787,94661.0,94660.0,0.1278992]
[1740429386522,0.00265705,94661.0,94660.0,0.1278992]
[1740429386724,0.0009787,94661.0,94660.0,0.1278992]
[1740429386929,0.00265705,94661.0,94660.0,0.1278992]
[1740429387226,0.00265699,94661.0,94660.0,0.1278992]
[1740429389309,0.00265699,94661.0,94660.0,0.39544204]
[1740429389632,0.0009787,94661.0,94660.0,0.39544204]
[1740429394901,0.0009787,94661.0,94660.0,0.39444204]
[1740429395114,0.0009787,94661.0,94660.0,0.39744204]
[1740429396051,0.0009787,94661.0,94660.0,0.39844204]
[1740429396412,0.0009787,94661.0,94660.0,0.39444204]
[1740429396819,0.0019787,94661.0,94660.0,0.39544204]
[1740429397639,0.0019787,94661.0,94660.0,0.1318992]
[1740429397857,0.0019787,94661.0,94660.0,0.2903602]
[1740429398060,0.0019787,94661.0,94660.0,0.39544204]
[1740429398355,0.0019787,94661.0,94660.0,0.39944204]
[1740429398356,0.0009787,94661.0,94660.0,0.39944204]
[1740429398558,0.0019787,94661.0,94660.0,0.40544204]
[1740429399103,0.0019787,94661.0,94660.0,0.40044204]
[1740429399349,0.0029787,94661.0,94660.0,0.40744204]
[1740429399761,0.0019787,94661.0,94660.0,0.40144204]
[1740429400121,0.0029787,94661.0,94660.0,0.40744204]
[1740429403686,0.0029787,94661.0,94660.0,0.55744204]
[1740429408526,0.0029787,94661.0,94660.0,0.87984204]
[1740429409301,0.0029787,94661.0,94660.0,0.72138104]
[1740429409517,0.0029787,94661.0,94660.0,0.72984204]
[1740429409850,0.0029787,94661.0,94660.0,0.3370992]
[1740429410058,0.1614387,94661.0,94660.0,0.3370992]
[1740429410236,0.00475294,94661.0,94660.0,0.3370992]
[1740429410695,0.00375294,94661.0,94660.0,0.3310992]
[1740429411100,0.00375294,94661.0,94660.0,0.3360992]
[1740429411261,0.00275294,94661.0,94660.0,0.3290992]
[1740429411459,0.00275294,94661.0,94660.0,0.3330992]
[1740429412884,0.0009787,94661.0,94660.0,0.49799635]
[1740429413854,0.0009787,94661.0,94660.0,0.72264204]
[1740429417942,0.15964,94705.0,94672.0,0.00516726]
[1740429417943,0.2499,94702.0,94672.0,0.00516726]
[1740429418153,0.158419,94686.0,94676.0,0.00516726]
[1740429418369,0.158417,94687.0,94676.0,0.00516726]
[1740429418566,0.00177783,94685.0,94676.0,0.00516726]
[1740429418771,0.00177863,94686.0,94676.0,0.00516726]
[1740429419002,0.21122,94688.0,94676.0,0.00516726]
[1740429419003,0.00177783,94684.0,94676.0,0.00516726]
[1740429419123,0.00177836,94685.0,94676.0,0.00516726]
[1740429419331,0.0017781,94683.0,94676.0,0.00516726]
[1740429419626,0.00177703,94684.0,94676.0,0.00516726]
[1740429419838,0.003,94685.0,94678.0,0.211242]
[1740429420046,0.003,94685.0,94680.0,0.00516726]
[1740429420047,0.00177676,94683.0,94680.0,0.00516726]
[1740429420253,0.003,94685.0,94680.0,0.00516726]
[1740429420648,0.003,94685.0,94681.0,0.158426]
[1740429420850,0.004,94684.0,94682.0,0.158424]
[1740429421362,0.003,94684.0,94683.0,0.158423]
[1740429421549,0.158408,94692.0,94684.0,0.15842]
[1740429421823,0.211211,94692.0,94681.0,0.001]
[1740429422022,0.158413,94689.0,94680.0,0.00616726]
[1740429422262,0.00178303,94691.0,94680.0,0.00616726]
[1740429422480,0.00178376,94688.0,94682.0,0.001]
[1740429422659,0.211218,94689.0,94680.0,0.001]
[1740429422660,0.158426,94681.0,94680.0,0.001]
[1740429422875,0.00178189,94681.0,94680.0,0.001]
[1740429423018,0.01417607,94695.0,94680.0,0.001]
[1740429423220,0.01483274,94706.0,94680.0,0.001]
[1740429423221,0.158423,94684.0,94680.0,0.001]
[1740429423427,0.16020623,94683.0,94673.0,0.158439]
[1740429423631,0.00178323,94683.0,94678.0,0.00516726]
[1740429423829,0.211193,94700.0,94682.0,0.0488]
[1740429424030,0.001,94692.0,94691.0,0.158409]
[1740429424228,0.00012915,94702.0,94694.0,0.00516726]
[1740429424930,0.00012915,94702.0,94696.0,0.00516726]
[1740429425315,0.00412915,94702.0,94696.0,0.00516726]
[1740429425517,0.00412915,94702.0,94700.0,0.00516726]
[1740429425714,0.00712915,94702.0,94701.0,0.26620595]
[1740429425928,0.00712915,94702.0,94701.0,0.39530595]
[1740429426568,0.00312915,94702.0,94701.0,0.39530595]
[1740429426971,0.00612915,94702.0,94701.0,0.39530595]
[1740429427510,0.00012915,94702.0,94701.0,0.39530595]
[1740429427665,0.00212915,94702.0,94701.0,0.39830595]
[1740429427845,0.00012915,94702.0,94701.0,0.39830595]
[1740429428260,0.00012915,94702.0,94701.0,0.40130595]
[1740429430845,0.00097865,94702.0,94701.0,0.40130595]
[1740429431108,0.15936965,94702.0,94701.0,0.006]
[1740429431607,0.16129701,94702.0,94701.0,0.006]
[1740429431842,0.17487229,94702.0,94701.0,0.006]
[1740429432105,0.17487229,94702.0,94701.0,0.003]
[1740429432106,0.00290601,94702.0,94701.0,0.003]
[1740429432343,0.01622056,94702.0,94701.0,0.003]
[1740429432599,0.17461156,94702.0,94701.0,0.003]
[1740429432835,0.17461156,94702.0,94681.0,0.158426]
[1740429432836,0.15,94701.0,94666.0,0.0792]
[1740429433078,0.1055517,94702.0,94671.0,0.00516726]
[1740429433079,0.211195,94699.0,94671.0,0.00516726]
[1740429433310,0.10264569,94700.0,94671.0,0.00516726]
[1740429433311,0.10264569,94698.0,94671.0,0.00516726]
[1740429433543,0.10434247,94698.0,94671.0,0.00516726]
[1740429433716,0.10434247,94698.0,94666.0,0.0792]
[1740429433717,0.10434247,94698.0,94666.0,0.08436726]
[1740429433936,0.15844,94673.0,94666.0,0.0792]
[1740429434240,0.15844,94673.0,94656.0,0.09455973]
[1740429434483,0.17350824,94673.0,94656.0,0.0813]
[1740429434764,0.17350824,94673.0,94657.0,0.00516726]
[1740429434943,0.16012818,94673.0,94657.0,0.00516726]
[1740429435148,0.16112818,94673.0,94672.0,0.007699]
[1740429435758,0.16012818,94673.0,94672.0,0.001699]
[1740429436962,0.16012818,94673.0,94672.0,0.002699]
[1740429439291,0.16012818,94673.0,94672.0,0.001699]
[1740429439503,0.16112818,94673.0,94672.0,0.001699]
[1740429440134,0.00268818,94673.0,94672.0,0.001699]
[1740429440789,0.16112818,94673.0,94672.0,0.001699]
[1740429440989,0.00168818,94673.0,94672.0,0.001699]
[1740429441420,0.15844,94674.0,94672.0,0.001699]
[1740429441615,0.0016403,94673.0,94672.0,0.002699]
[1740429442374,0.15844,94673.0,94672.0,0.002699]
[1740429442576,0.16007881,94673.0,94672.0,0.002699]
[1740429442984,0.2627245,94673.0,94672.0,0.002699]
[1740429443796,0.2637245,94673.0,94672.0,0.002699]
[1740429443999,0.2733645,94673.0,94672.0,0.002699]
[1740429444990,0.2733645,94673.0,94672.0,0.001699]
[1740429445934,0.4137245,94673.0,94672.0,0.001699]
[1740429446101,0.43790535,94673.0,94672.0,0.001699]
[1740429448035,0.27782654,94673.0,94672.0,0.001699]
[1740429448263,0.36515476,94673.0,94672.0,0.001699]
[1740429448831,0.30944,94673.0,94672.0,0.001699]
[1740429450458,0.15944,94673.0,94672.0,0.001699]
[1740429450858,0.001,94673.0,94672.0,0.001699]
[1740429451435,0.01306616,94690.0,94676.0,0.00516726]
[1740429451644,0.158425,94682.0,94677.0,0.0793]
[1740429451824,0.00012912,94695.0,94677.0,0.0783]
[1740429452187,0.21275111,94694.0,94677.0,0.0783]
[1740429452539,0.003,94690.0,94677.0,0.0783]
[1740429452722,0.158426,94682.0,94677.0,0.0783]
[1740429452917,0.158423,94683.0,94677.0,0.0783]
[1740429453347,0.158425,94682.0,94677.0,0.0783]
[1740429453733,0.158413,94689.0,94680.0,0.158427]
[1740429453938,0.00154333,94688.0,94683.0,0.00516726]
[1740429454179,0.211222,94687.0,94683.0,0.00516726]
[1740429454334,0.158421,94684.0,94683.0,0.00516726]
[1740429454547,0.21277287,94686.0,94683.0,0.00516726]
[1740429454922,0.158431,94678.0,94677.0,0.08346726]
[1740429455123,0.15997601,94678.0,94677.0,0.08346726]
[1740429456036,0.15997601,94678.0,94677.0,0.08846726]
[1740429456208,0.158431,94678.0,94677.0,0.08346726]
[1740429456406,0.158431,94678.0,94677.0,0.08546726]
[1740429458208,0.158431,94678.0,94677.0,0.08646726]
[1740429458407,0.158431,94678.0,94677.0,0.08846726]
[1740429461487,0.158431,94678.0,94677.0,0.0833]
[1740429461688,0.15,94677.0,94672.0,1e-06]
[1740429461950,0.15844,94673.0,94672.0,1e-06]
[1740429462187,0.26108569,94673.0,94672.0,1e-06]
[1740429462699,0.26108569,94673.0,94672.0,0.006001]
[1740429463260,0.26108569,94673.0,94672.0,1e-06]
[1740429463962,0.15844,94673.0,94672.0,1e-06]
[1740429465134,0.15944,94673.0,94672.0,1e-06]
[1740429466428,0.001,94673.0,94672.0,1e-06]
[1740429466622,0.15944,94673.0,94672.0,1e-06]
[1740429466828,0.16044,94673.0,94672.0,1e-06]
[1740429467184,0.15944,94673.0,94672.0,1e-06]
[1740429467975,0.15844,94673.0,94672.0,1e-06]
[1740429468381,0.15944,94673.0,94672.0,1e-06]
[1740429470999,0.001,94673.0,94672.0,1e-06]
[1740429471131,0.001,94673.0,94672.0,0.00516826]
[1740429471675,0.158433,94677.0,94672.0,0.16360926]
[1740429471897,0.158433,94677.0,94672.0,0.00516826]
[1740429472307,0.0008496,94678.0,94677.0,0.236533]
[1740429472524,0.0008496,94678.0,94677.0,0.24170026]
[1740429473437,0.0008496,94678.0,94677.0,0.24370026]
[1740429474312,0.0008496,94678.0,94677.0,0.34634595]
[1740429474740,0.0008496,94678.0,94677.0,0.34834595]
[1740429476416,0.0008496,94678.0,94677.0,0.39484595]
[1740429477410,0.0008496,94678.0,94677.0,0.39284595]
[1740429477689,0.0008496,94678.0,94677.0,0.39784595]
[1740429478673,0.0008496,94678.0,94677.0,0.39584595]
[1740429478887,0.0008496,94678.0,94677.0,0.40084595]
[1740429479087,0.1572606,94691.0,94681.0,0.158426]
[1740429479400,0.0008494,94699.0,94693.0,0.00516726]
[1740429479618,0.158398,94698.0,94693.0,0.00516726]
[1740429479829,0.0008494,94699.0,94694.0,0.24387126]
[1740429479971,0.0008494,94699.0,94694.0,0.34651695]
[1740429480323,0.0008494,94699.0,94694.0,0.39161695]
[1740429480522,0.00112912,94695.0,94694.0,0.39161695]
[1740429481947,0.00012912,94695.0,94694.0,0.39561695]
[1740429482169,0.00012912,94695.0,94694.0,0.39661695]
[1740429482374,0.00012912,94695.0,94694.0,0.54661695]
[1740429482595,0.00012912,94695.0,94694.0,0.54161695]
[1740429482771,0.00012912,94695.0,94694.0,0.55161695]
[1740429483168,0.00012912,94695.0,94694.0,0.54661695]
[1740429483370,0.00012912,94695.0,94694.0,0.55061695]
[1740429483578,0.00012912,94695.0,94694.0,0.54661695]
[1740429484056,0.00012912,94695.0,94694.0,0.54161695]
[1740429484877,0.00012912,94695.0,94694.0,0.54761695]
[1740429485075,0.00112912,94695.0,94694.0,0.55361695]
[1740429485652,0.00112912,94695.0,94694.0,0.87601695]
[1740429487540,0.00112912,94695.0,94694.0,0.56761295]
[1740429487741,0.15953212,94695.0,94694.0,0.3344]
[1740429488172,0.15953212,94695.0,94694.0,0.012]
[1740429488574,0.15953212,94695.0,94694.0,0.006]
[1740429489066,0.00012912,94695.0,94691.0,0.001699]
[1740429489262,0.00012912,94695.0,94694.0,0.001]
[1740429489263,0.38322394,94695.0,94694.0,0.001]
[1740429489396,0.38407344,94695.0,94694.0,0.001]
[1740429489602,0.37058562,94695.0,94694.0,0.001]
[1740429489797,0.37358562,94695.0,94694.0,0.001]
[1740429490032,0.38398251,94695.0,94694.0,0.001]
[1740429491033,0.39362251,94695.0,94694.0,0.001]
[1740429491242,0.158408,94692.0,94691.0,0.001699]
[1740429492611,0.160408,94692.0,94691.0,0.001699]
[1740429492781,0.158408,94692.0,94691.0,0.001699]
[1740429492979,0.161408,94692.0,94691.0,0.001699]
[1740429494071,0.006,94692.0,94691.0,0.001699]
[1740429494280,0.164408,94692.0,94691.0,0.001699]
[1740429494484,0.161408,94692.0,94691.0,0.001699]
[1740429494729,0.158408,94692.0,94691.0,0.001699]
[1740429494991,0.160408,94692.0,94691.0,0.001699]
[1740429496747,0.15844,94673.0,94672.0,1e-06]
[1740429498024,0.15844,94673.0,94672.0,0.003001]
[1740429499931,0.158438,94675.0,94672.0,0.003001]
[1740429500177,0.15844,94673.0,94672.0,0.003001]
[1740429500786,0.15844,94673.0,94672.0,1e-06]
[1740429501237,0.158438,94674.0,94672.0,0.003001]
[1740429501693,0.158438,94674.0,94672.0,1e-06]
[1740429501893,0.158439,94674.0,94672.0,0.004001]
[1740429502136,0.158438,94674.0,94672.0,0.004001]
[1740429502412,0.1213566,94684.0,94672.0,0.004001]
[1740429502646,1.05620423,94693.0,94675.0,0.00516726]
[1740429502848,0.0104895,94692.0,94676.0,0.00516726]
[1740429503041,0.0008495,94692.0,94676.0,0.00516726]
[1740429503294,0.0008495,94692.0,94682.0,0.158423]
[1740429503483,0.0008495,94692.0,94680.0,0.00516726]
[1740429503896,0.0008495,94692.0,94679.0,0.238729]
[1740429503897,0.158413,94689.0,94683.0,0.00516726]
[1740429504150,0.211215,94690.0,94683.0,0.00516726]
[1740429504387,0.158415,94688.0,94683.0,0.00516726]
[1740429504587,0.158419,94686.0,94683.0,0.00516726]
[1740429504741,0.3265,94691.0,94683.0,0.00516726]
[1740429504742,0.211217,94689.0,94683.0,0.00516726]
[1740429504931,0.158419,94686.0,94683.0,0.00516726]
[1740429505159,0.3295,94691.0,94683.0,0.00516726]
[1740429505764,0.158421,94684.0,94683.0,0.00516726]
[1740429506008,0.3285,94691.0,94683.0,0.00516726]
[1740429506212,0.158418,94687.0,94683.0,0.00516726]
[1740429506415,0.211222,94687.0,94670.0,0.0777]
[1740429506619,0.15844,94673.0,94672.0,0.00516826]
[1740429506793,0.15844,94673.0,94672.0,1e-06]
[1740429508019,0.15844,94673.0,94672.0,0.004001]
[1740429514154,0.15,94688.0,94672.0,0.004001]
[1740429514350,0.15844,94673.0,94672.0,0.004001]
[1740429515790,0.15844,94673.0,94672.0,1e-06]
[1740429516812,0.15844,94673.0,94672.0,0.004001]
[1740429517398,0.00964,94686.0,94672.0,1e-06]
[1740429517639,0.15944,94673.0,94672.0,1e-06]
[1740429518607,0.001,94673.0,94672.0,1e-06]
[1740429518806,0.15944,94673.0,94672.0,1e-06]
[1740429519553,0.15844,94673.0,94672.0,1e-06]
[1740429520566,0.15844,94673.0,94672.0,0.001001]
[1740429523790,0.158438,94674.0,94672.0,0.001001]
[1740429524431,0.15844,94673.0,94672.0,0.001001]
[1740429524637,0.15844,94673.0,94672.0,1e-06]
[1740429528175,0.15844,94673.0,94672.0,0.001001]
[1740429530879,0.21124,94679.0,94672.0,0.001001]
[1740429531185,0.158439,94674.0,94672.0,0.001001]
[1740429531390,0.15844,94673.0,94672.0,0.001001]
[1740429531593,0.158438,94674.0,94672.0,0.001001]
[1740429532449,0.158438,94674.0,94672.0,1e-06]
[1740429532703,0.15844,94673.0,94672.0,1e-06]
[1740429533606,0.211249,94675.0,94672.0,1e-06]
[1740429533829,0.158438,94674.0,94672.0,1e-06]
[1740429534391,0.158438,94674.0,94672.0,0.001001]
[1740429534588,0.211247,94676.0,94672.0,0.001001]
[1740429534910,0.211231,94683.0,94672.0,0.001001]
[1740429534911,0.158437,94675.0,94672.0,0.001001]
[1740429535067,0.158438,94674.0,94672.0,0.001001]
[1740429535314,0.15844,94673.0,94672.0,0.001001]
[1740429535530,0.15844,94673.0,94672.0,1e-06]
[1740429536546,0.15844,94673.0,94672.0,0.001001]
[1740429541320,0.031751,94688.0,94673.0,0.08026726]
[1740429541530,0.01057862,94695.0,94678.0,0.00516726]
[1740429541744,0.15843,94679.0,94678.0,0.00516726]
[1740429542137,0.211228,94685.0,94678.0,0.00516726]
[1740429542330,0.158428,94681.0,94678.0,0.00516726]
[1740429542793,0.158425,94682.0,94678.0,0.00516726]
[1740429543645,0.158427,94681.0,94678.0,0.00516726]
[1740429543847,0.0028495,94684.0,94678.0,0.00516726]
[1740429544127,0.0028495,94684.0,94682.0,0.00516726]
[1740429544334,0.0028495,94684.0,94683.0,0.16359026]
[1740429544751,0.0028495,94684.0,94683.0,0.34453595]
[1740429544951,0.0008495,94684.0,94683.0,0.18611295]
[1740429545166,0.0008495,94684.0,94683.0,0.18511295]
[1740429545390,0.0008495,94684.0,94683.0,0.34353595]
[1740429545600,0.0008495,94684.0,94683.0,0.39183595]
[1740429545601,0.0018495,94684.0,94683.0,0.39183595]
[1740429546021,0.0018495,94684.0,94683.0,0.39683595]
[1740429546436,0.0018495,94684.0,94683.0,0.39383595]
[1740429546882,0.0028495,94684.0,94683.0,0.39983595]
[1740429547336,0.0018495,94684.0,94683.0,0.39783595]
[1740429548268,0.0028495,94684.0,94683.0,0.40083595]
[1740429548701,0.1612705,94684.0,94683.0,0.24241295]
[1740429548923,0.1612705,94684.0,94683.0,0.009]
[1740429549328,0.3112705,94684.0,94683.0,0.009]
[1740429549786,0.3102705,94684.0,94683.0,0.003]
[1740429549959,0.3102705,94684.0,94683.0,0.009]
[1740429550164,0.3112705,94684.0,94683.0,0.009]
[1740429550589,0.0018495,94684.0,94683.0,0.006]
[1740429550791,0.0048495,94684.0,94683.0,0.25179026]
[1740429550942,0.1632705,94684.0,94683.0,0.006]
[1740429551143,0.0018495,94684.0,94681.0,0.00416726]
[1740429551396,0.158425,94682.0,94681.0,0.00416726]
[1740429551617,0.2120795,94684.0,94680.0,0.00416726]
[1740429551618,0.158426,94681.0,94680.0,0.00416726]
[1740429552042,0.0008495,94684.0,94674.0,0.00416726]
[1740429552282,0.158436,94675.0,94674.0,0.00416726]
[1740429553807,0.211246,94677.0,94674.0,0.00416726]
[1740429554010,0.0008495,94684.0,94674.0,0.00416726]
[1740429554562,0.158423,94683.0,94679.0,0.00416726]
[1740429554796,0.0008495,94684.0,94679.0,0.00416726]
[1740429555013,0.158423,94683.0,94679.0,0.00416726]
[1740429555266,0.0008495,94684.0,94681.0,0.158426]
[1740429555504,0.0008495,94684.0,94683.0,0.16259026]
[1740429555746,0.0008495,94684.0,94683.0,0.26523595]
[1740429556179,9.093e-05,94695.0,94691.0,0.00416726]
[1740429556617,0.158408,94692.0,94691.0,0.00416726]
[1740429557103,9.093e-05,94695.0,94691.0,0.00416726]
[1740429557537,0.00309093,94695.0,94694.0,0.00416726]
[1740429558168,0.00309093,94695.0,94694.0,0.00216726]
[1740429558367,0.00409093,94695.0,94694.0,0.00216726]
[1740429558913,9.093e-05,94695.0,94694.0,0.00216726]
[1740429559299,9.093e-05,94695.0,94694.0,0.00416726]
[1740429560317,9.093e-05,94695.0,94694.0,0.00616726]
[1740429562245,9.093e-05,94695.0,94694.0,0.21417126]
[1740429563027,9.093e-05,94695.0,94694.0,0.05576726]
[1740429563188,9.093e-05,94695.0,94694.0,0.05555855]
[1740429563551,9.093e-05,94695.0,94694.0,0.21396255]
[1740429563952,9.093e-05,94695.0,94694.0,0.31660824]
[1740429565909,0.15849393,94695.0,94694.0,0.0536]
[1740429566117,9.093e-05,94695.0,94694.0,0.05555855]
[1740429567584,9.093e-05,94695.0,94694.0,0.21396255]
[1740429568026,9.093e-05,94695.0,94694.0,0.05555855]
[1740429571049,9.093e-05,94695.0,94694.0,0.31660824]
[1740429571251,9.093e-05,94695.0,94694.0,0.15820424]
[1740429571450,9.093e-05,94695.0,94694.0,0.31660824]
[1740429572042,9.093e-05,94695.0,94694.0,0.15820424]
[1740429572983,9.093e-05,94695.0,94694.0,0.31660824]
[1740429573229,9.093e-05,94695.0,94694.0,0.15820424]
[1740429574830,0.15849393,94695.0,94694.0,0.004]
[1740429575904,0.15849393,94695.0,94694.0,0.002]
[1740429576157,0.158421,94684.0,94678.0,0.00195855]
[1740429576616,0.211221,94688.0,94678.0,0.00195855]
[1740429576849,0.158421,94684.0,94678.0,0.00195855]
[1740429577056,9.093e-05,94695.0,94683.0,0.00365735]
[1740429577265,0.158406,94694.0,94683.0,0.00365735]
[1740429577438,0.158404,94694.0,94683.0,0.00665735]
[1740429577654,0.15849393,94695.0,94683.0,0.00665735]
[1740429577902,9.093e-05,94695.0,94689.0,0.00195855]
[1740429578819,0.15841,94691.0,94689.0,0.00195855]
[1740429579057,0.211206,94694.0,94689.0,0.00195855]
[1740429579285,0.158406,94693.0,94689.0,0.00195855]
[1740429579527,0.211208,94693.0,94689.0,0.00195855]
[1740429579731,0.158408,94692.0,94689.0,0.00195855]
[1740429579933,0.211208,94693.0,94689.0,0.00195855]
[1740429580351,0.158411,94691.0,94689.0,0.00195855]
[1740429580564,0.158408,94692.0,94689.0,0.00195855]
[1740429580740,0.21129493,94695.0,94689.0,0.00195855]
[1740429581013,0.158406,94693.0,94689.0,0.00195855]
[1740429581219,0.158407,94693.0,94689.0,0.00195855]
[1740429581638,0.158406,94694.0,94689.0,0.00195855]
[1740429581839,9.093e-05,94695.0,94689.0,0.00195855]
[1740429582046,0.158409,94692.0,94689.0,0.00195855]
[1740429582221,0.158411,94691.0,94689.0,0.00195855]
[1740429582643,0.158411,94690.0,94689.0,0.00365735]
[1740429582878,0.00209093,94695.0,94689.0,0.00365735]
[1740429583110,0.00109093,94695.0,94694.0,0.00195855]
[1740429583333,9.093e-05,94695.0,94694.0,0.00195855]
[1740429584207,0.00209093,94695.0,94694.0,0.00195855]
[1740429584418,0.00209093,94695.0,94694.0,0.04925855]
[1740429584839,0.00209093,94695.0,94694.0,0.15190424]
[1740429585270,9.093e-05,94695.0,94694.0,0.15390424]
[1740429585628,9.093e-05,94695.0,94694.0,0.15590424]
[1740429598286,0.15849393,94695.0,94694.0,0.004]
[1740429598487,0.17079576,94695.0,94694.0,0.004]
[1740429598915,0.23829576,94695.0,94694.0,0.004]
[1740429599313,0.24789576,94695.0,94694.0,0.002]
[1740429599515,0.158411,94690.0,94689.0,0.0016988]
[1740429600358,0.00209093,94695.0,94689.0,0.0016988]
[1740429600678,0.158411,94690.0,94689.0,0.0016988]
[1740429601034,0.158411,94690.0,94689.0,0.0026988]
[1740429602020,0.15823083,94690.0,94689.0,0.0026988]
[1740429602220,0.15823083,94690.0,94689.0,0.0016988]
[1740429603140,0.15823083,94690.0,94689.0,0.0026988]
[1740429606337,0.15908053,94690.0,94689.0,0.0026988]
[1740429609345,0.0008497,94690.0,94689.0,0.0026988]
[1740429609815,0.1592607,94690.0,94689.0,0.0026988]
[1740429611808,0.3092607,94690.0,94689.0,8e-07]
[1740429611982,0.49426608,94690.0,94689.0,8e-07]
[1740429612181,0.49426608,94690.0,94686.0,0.0016994]
[1740429612182,0.308421,94684.0,94683.0,1e-06]
[1740429612409,0.37594,94673.0,94647.0,0.00195855]
[1740429612580,1.59233077,94673.0,94647.0,0.00195855]
[1740429612798,0.30846,94661.0,94660.0,2e-07]
[1740429613060,1.88145177,94661.0,94660.0,2e-07]
[1740429613381,1.80835077,94661.0,94660.0,2e-07]
[1740429614129,1.80839376,94661.0,94660.0,2e-07]
[1740429614864,1.80839376,94661.0,94660.0,0.0010002]
[1740429615280,1.80839376,94661.0,94660.0,2e-07]
[1740429615481,1.81539376,94661.0,94660.0,2e-07]
[1740429615839,1.82499376,94661.0,94660.0,2e-07]
[1740429619658,1.82584366,94661.0,94660.0,0.0017]
[1740429620309,0.16454085,94660.0,94634.0,0.00195855]
[1740429620517,0.15851,94631.0,94630.0,0.078]
[1740429620719,0.15853,94619.0,94618.0,0.0019589]
[1740429621143,1.05620423,94645.0,94622.0,0.126]
[1740429621144,0.158515,94628.0,94622.0,0.126]
[1740429621349,0.158523,94623.0,94622.0,0.126]
[1740429621781,1.05620423,94645.0,94622.0,0.126]
[1740429621986,0.158512,94630.0,94629.0,0.00195855]
[1740429622217,0.1596,94644.0,94629.0,0.00195855]
[1740429622427,0.01177949,94637.0,94630.0,0.00195855]
[1740429622631,0.21132,94643.0,94630.0,0.00195855]
[1740429622847,0.15,94644.0,94630.0,0.00195855]
[1740429623055,0.21132,94643.0,94630.0,0.00195855]
[1740429623263,0.158506,94634.0,94630.0,0.00195855]
[1740429623441,0.21132,94643.0,94631.0,0.0757]
[1740429623667,0.01212203,94639.0,94631.0,0.0757]
[1740429623918,0.21132,94643.0,94631.0,0.0757]
[1740429624311,0.158508,94632.0,94631.0,0.0757]
[1740429624755,0.211332,94638.0,94631.0,0.0747]
[1740429625163,0.158508,94632.0,94631.0,0.0747]
[1740429625593,0.159508,94632.0,94631.0,0.0747]
[1740429626006,0.158508,94632.0,94631.0,0.0747]
[1740429626206,0.158507,94634.0,94631.0,0.0747]
[1740429626453,0.158508,94632.0,94631.0,0.0747]
[1740429627651,5.446e-05,94645.0,94641.0,0.00195855]
[1740429627851,0.21132,94644.0,94637.0,0.00195855]
[1740429628064,0.01221262,94645.0,94636.0,0.00195855]
[1740429628267,0.1585,94637.0,94636.0,0.00195855]
[1740429628847,0.158505,94634.0,94633.0,0.00195855]
[1740429629059,0.01421262,94645.0,94633.0,0.00195855]
[1740429629255,0.158505,94634.0,94633.0,0.00195855]
[1740429630334,0.158504,94635.0,94633.0,0.00195855]
[1740429630535,0.00105446,94645.0,94633.0,0.00195855]
[1740429630667,0.158498,94639.0,94633.0,0.00195855]
[1740429631188,0.158489,94644.0,94642.0,0.00195855]
[1740429631396,0.15954146,94645.0,94642.0,0.00195855]
[1740429631581,0.15854146,94645.0,94642.0,0.00195855]
[1740429631784,0.15849,94643.0,94642.0,0.00195855]
[1740429632179,0.00279214,94643.0,94642.0,0.00195855]
[1740429632557,5.446e-05,94645.0,94642.0,0.00195855]
[1740429632806,5.446e-05,94645.0,94644.0,0.24374655]
[1740429633008,5.446e-05,94645.0,94644.0,0.08525855]
[1740429633385,5.446e-05,94645.0,94644.0,0.24374655]
[1740429633730,5.446e-05,94645.0,94644.0,0.29044655]
[1740429633927,5.446e-05,94645.0,94644.0,0.13195855]
[1740429634157,5.446e-05,94645.0,94644.0,0.29044655]
[1740429634364,5.446e-05,94645.0,94644.0,0.13195855]
[1740429634539,0.00105446,94645.0,94644.0,0.13195855]
[1740429634897,0.15854046,94645.0,94644.0,0.0487]
[1740429635097,0.15854046,94645.0,94644.0,0.002]
[1740429635521,0.15254046,94645.0,94644.0,0.002]
[1740429635933,0.211303,94651.0,94644.0,0.002]
[1740429636234,0.158497,94639.0,94638.0,0.00195855]
[1740429636661,0.158502,94636.0,94635.0,0.0467]
[1740429636885,0.158502,94636.0,94594.0,0.001699]
[1740429636886,0.211333,94638.0,94626.0,0.0755]
[1740429637105,0.158508,94632.0,94623.0,0.00195855]
[1740429637309,0.158508,94632.0,94624.0,0.00195855]
[1740429637722,0.158508,94632.0,94619.0,0.0755]
[1740429637723,0.211321,94643.0,94628.0,0.00195855]
[1740429637959,0.211327,94640.0,94628.0,0.00195855]
[1740429638162,0.158508,94632.0,94628.0,0.00195855]
[1740429638367,0.158507,94633.0,94628.0,0.00195855]
[1740429638585,0.0096,94643.0,94631.0,0.00365835]
[1740429638787,0.0096,94643.0,94631.0,0.00565835]
[1740429638788,0.211322,94642.0,94631.0,0.00565835]
[1740429638982,0.158507,94633.0,94631.0,0.00565835]
[1740429639639,0.158507,94633.0,94631.0,0.00365835]
[1740429639843,0.211322,94642.0,94631.0,0.00365835]
[1740429640048,0.158504,94635.0,94631.0,0.00365835]
[1740429640252,0.211334,94637.0,94631.0,0.00365835]
[1740429640456,0.158505,94634.0,94631.0,0.00365835]
[1740429640838,0.158504,94635.0,94631.0,0.00365835]
[1740429640995,0.212323,94642.0,94631.0,0.00365835]
[1740429641423,0.001,94642.0,94631.0,0.00365835]
[1740429641629,0.211322,94642.0,94631.0,0.00365835]
[1740429641968,0.158508,94632.0,94631.0,0.00365835]
[1740429642166,0.158508,94632.0,94631.0,0.0016998]
[1740429644891,0.159508,94632.0,94631.0,0.0016998]
[1740429645237,0.42669454,94632.0,94631.0,8e-07]
[1740429646234,0.42868682,94632.0,94631.0,8e-07]
[1740429647426,0.42768682,94632.0,94631.0,8e-07]
[1740429647711,0.43368682,94632.0,94631.0,8e-07]
[1740429647880,0.42868682,94632.0,94631.0,8e-07]